Cogmind - Beta 12 @@@ ROGUE MODE // 2024.02.19 @ 15:52:57 Player: Takagiro Result: Destroyed by as-82891 with Assembled F-torch Performance ------------- Evolutions (1) 500 Regions Visited (4) 800 Robots Destroyed (10) 50 Value Destroyed (294) 294 Prototype IDs (0) 0 Alien Tech Used (0) 0 Bonus (23) 23 TOTAL SCORE: 1667 Bonus ------- Follower Combat Kills 33 Friendly Fire -10 Cogmind --------- Core Integrity 0/400 Matter 240/300 Energy 100/100 System Corruption 11% Temperature Cool (20) Movement Core (2750) Ox54 Location -9/Mines Parts ------- > --- POWER (1) -------- (None) > --- PROPULSION (2) --- (None) > --- UTILITY (4) ------ Large Storage Unit Cargo Storage Unit > --- WEAPON (2) ------- Light Assault Rifle Makeshift Spear > --- INVENTORY (30) --- Ion Engine Light Ion Engine Light Ion Engine Improved Ion Engine Light Treads Light Treads Light Treads Aluminum Leg Aluminum Leg Cargo Storage Unit Light Armor Plating Light Armor Plating Assault Rifle Assault Rifle Peak State ------------ > --- POWER ------------ Light Ion Engine > --- PROPULSION ------- Light Treads Light Treads > --- UTILITY ---------- Large Storage Unit Cargo Storage Unit Authchip [Propulsion] > --- WEAPON ----------- Small Laser Light Assault Rifle > --- INVENTORY -------- Ion Engine Light Ion Engine Light Ion Engine Improved Ion Engine Light Treads Light Treads Light Treads Aluminum Leg Aluminum Leg Light Armor Plating Light Armor Plating Assault Rifle Assault Rifle Assault Rifle Light Assault Rifle Makeshift Spear [Rating: 14] Favorites ----------- Power Light Ion Engine Engine Light Ion Engine Propulsion Aluminum Leg Treads Light Treads Leg Aluminum Leg Utility Large Storage Unit Storage Large Storage Unit Processor Targeting Computer Hackware Authchip [Propulsion] Protection Light Armor Plating Weapon Small Laser Energy Gun Small Laser Ballistic Gun Light Assault Rifle Piercing Weapon Makeshift Spear Build | -11 -10 -10 -9 -9 ------- Run | Jun Mat Min Mat Min Slots Evolved 2 | . . . 2 . Power . | . . . . . Propulsion . | . . . . . Utility 2 | . . . 2 . Weapon . | . . . . . Parts Attached 18 | 6 1 3 5 3 Power 1 | 1 . . . . Engine 1 | 1 . . . . Core . | . . . . . Reactor . | . . . . . Propulsion 5 | 2 . 1 2 . Treads 2 | . . . 2 . Leg 3 | 2 . 1 . . Wheel . | . . . . . Hover . | . . . . . Flight . | . . . . . Utility 6 | 1 1 1 3 . Device . | . . . . . Storage 3 | 1 . 1 1 . Processor 1 | . 1 . . . Hackware 1 | . . . 1 . Protection 1 | . . . 1 . Artifact . | . . . . . Weapon 6 | 2 . 1 . 3 Energy Gun 2 | 2 . . . . Energy Cannon . | . . . . . Ballistic Gun 3 | . . 1 . 2 Ballistic Cannon . | . . . . . Launcher . | . . . . . Special Weapon . | . . . . . Impact Weapon . | . . . . . Slashing Weapon . | . . . . . Piercing Weapon 1 | . . . . 1 Special Melee Weapon . | . . . . . Unidentified Prototypes . | . . . . . Parts Lost 7 | . . . . 7 Power 1 | . . . . 1 Propulsion 2 | . . . . 2 Utility 1 | . . . . 1 Weapon 3 | . . . . 3 Highest Loss Streak 7 | . . . . 7 To Critical Strikes 1 | . . . . 1 Average Slot Usage (%) 92 | . 96 100 97 85 Engine 12 | . 14 14 11 10 Treads 10 | . . . 5 21 Leg 13 | . 28 28 16 . Storage 17 | . 14 14 13 22 Processor 6 | . 10 14 8 . Hackware 6 | . . . 11 10 Energy Gun 13 | . 28 16 11 10 Ballistic Gun 10 | . . 11 11 11 Naked Turns . | . . . . . Heaviest Build 165 | 11 11 25 165 165 Greatest Support 40 | 20 20 20 40 40 Greatest Overweight (x) 54 | 1 . 1 4 54 Average Overweight (x) 1 | . . . 1 4 Largest Inventory Capacity 30 | 8 8 15 30 30 Average Capacity 20 | 7 8 11 19 30 Most Carried 18 | 8 8 9 18 18 Average Carried 13 | 4 7 8 13 17 Final Capacity 30 | 8 8 15 30 30 Final Carried 18 | 5 8 9 18 15 Class Distribution -------------------- 52% | Mutant 47% | Hauler-Mutant Dominant Class ---------------- Mutant | -10/Materials Mutant | -10/Mines Mutant | -9/Materials Hauler-Mutant | -9/Mines Resources | -11 -10 -10 -9 -9 ----------- Run | Jun Mat Min Mat Min Matter Collected 339 | 260 10 32 25 12 Remotely . | . . . . . Salvage Created 358 | 100 28 147 57 26 Parts 20 | 1 3 8 8 . Haulers Intercepted . | . . . . . Recyclers Shooed 2 | . . 1 . 1 Parts Field Recycled . | . . . . . Retrieved Matter . | . . . . . Parts Self-Destructed . | . . . . . Prevented . | . . . . . Kills | -11 -10 -10 -9 -9 ------- Run | Jun Mat Min Mat Min Combat Hostiles Destroyed 11 | . . 5 1 5 Melee 1 | . . . . 1 Guns 10 | . . 5 1 4 Classes Destroyed 7 | 1 1 2 1 2 Recycler 1 | 1 . . . . Watcher 1 | . 1 . . . Swarmer 3 | . . 3 . . Grunt 2 | . . 2 . . Sentry 1 | . . . 1 . Demolisher 2 | . . . . 2 Assembled 3 | . . . . 3 Best Kill Streak 4 | 1 1 3 1 4 Combat Bots Only 4 | . . 3 1 4 Max Kills in Single Turn 2 | 1 1 1 1 2 Gunslinging 1 | . . . . 1 Exploded . | . . . . . Melee 1 | . . . . 1 Uniques/NPCs Destroyed . | . . . . . Combat | -11 -10 -10 -9 -9 -------- Run | Jun Mat Min Mat Min Damage Taken 1634 | . . 276 30 1328 Core 460 | . . 60 . 400 Absorbed by Shields . | . . . . . Core Remaining (%) 88 | 100 . 76 . . Volleys Fired 49 | 3 7 14 7 18 Largest 2 | 2 2 2 2 2 Hottest 90 | 90 90 90 60 60 Shots Fired 80 | 6 14 23 14 23 Gun 80 | 6 14 23 14 23 Cannon . | . . . . . Launcher . | . . . . . Special . | . . . . . Kinetic 31 | . . 7 7 17 Thermal 49 | 6 14 16 7 6 Explosive . | . . . . . Electromagnetic . | . . . . . Robot Hit Streak 8 | 2 3 4 8 7 Robot Miss Streak 5 | 1 4 2 1 5 Penetration Max . | . . . . . Secondary Targets 4 | . . 3 . 1 Max Gunslinging Chain 1 | . . 1 . 1 Shots Hit Robots 44 | 3 5 13 9 14 Core Hits 25 | 2 2 8 3 10 Critical Kills . | . . . . . Critical Parts Destroyed . | . . . . . Critical Strikes 1 | . . 1 . . Burn 1 | . . 1 . . Melee Attacks 2 | . . . . 2 Impact . | . . . . . Slashing . | . . . . . Piercing 2 | . . . . 2 Sneak Attacks . | . . . . . Combat Hostiles . | . . . . . Follow-up Attacks . | . . . . . Damage Inflicted 542 | 36 56 154 102 194 Guns 499 | 36 56 148 102 157 Cannons . | . . . . . Explosions . | . . . . . Melee 37 | . . . . 37 Ramming 6 | . . 6 . . Kinetic 166 | . . 18 47 101 Thermal 333 | 36 56 130 55 56 Explosive . | . . . . . Electromagnetic . | . . . . . Impact . | . . . . . Slashing . | . . . . . Piercing 37 | . . . . 37 Highest Corruption 11 | . . . . 11 Average Corruption 10 | . . . . 10 Corruption Purged . | . . . . . Corruption Blocked . | . . . . . Effects 4 | . . . . 4 Matter Fused 1 | . . . . 1 Heat Flow Errors 1 | . . . . 1 Alerts 1 | . . . . 1 Weapon Failures 1 | . . . . 1 Overload Shots . | . . . . . Overflow Damage . | . . . . . Projectiles . | . . . . . Explosions . | . . . . . Melee . | . . . . . Knockbacks . | . . . . . Impact . | . . . . . Kinetic . | . . . . . Secondary . | . . . . . Self-Inflicted Damage . | . . . . . Shots . | . . . . . Rammed . | . . . . . Targets Rammed 1 | . . 1 . . Kicked 1 | . . 1 . . Crushed . | . . . . . Highest Temperature 330 | 90 90 330 20 132 Average Temperature 70 | 47 35 152 15 36 Received Heat Transfer 780 | . . 120 . 660 Effects 3 | . . 3 . . Shutdowns 1 | . . 1 . . Short Circuit 1 | . . 1 . . Damage (minor) 1 | . . 1 . . Siege Activations . | . . . . . Robots Corrupted . | . . . . . Combat Hostiles . | . . . . . Parts Fried . | . . . . . Impact Corruptions . | . . . . . Robots Melted . | . . . . . Combat Hostiles . | . . . . . Parts Melted 1 | . . 1 . . Heat Transferred 895 | 99 149 397 125 125 Parts Sabotaged . | . . . . . Parts Stolen . | . . . . . Parts Stripped . | . . . . . Power Chain Reactions . | . . . . . Missiles Intercepted . | . . . . . Alert | -11 -10 -10 -9 -9 ------- Run | Jun Mat Min Mat Min Peak Influence 156 | 5 55 156 102 65 Initial 39 | . 3 21 . 39 Average 45 | 1 29 79 76 18 Maximum Alert Level . | . . . . . Low Security (%) 100 | 100 100 100 100 100 Level 1 . | . . . . . Level 2 . | . . . . . Level 3 . | . . . . . Level 4 . | . . . . . Level 5 . | . . . . . High Security . | . . . . . Max Security . | . . . . . Squads Dispatched 1 | . . 1 . . Investigation . | . . . . . Extermination . | . . . . . Reinforcement . | . . . . . Assault 1 | . . 1 . . Garrison . | . . . . . Intercept . | . . . . . Searches Triggered . | . . . . . Construction Impeded . | . . . . . Haulers Reinforced . | . . . . . Active Scanning Responses . | . . . . . Cargo Convoy Interrupts . | . . . . . Stealth | -11 -10 -10 -9 -9 --------- Run | Jun Mat Min Mat Min Distress Signals 1 | . . . 1 . Communications Jammed . | . . . . . Distress Signals . | . . . . . Times Spotted 26 | . 3 5 5 13 Peak Tracking Total 9 | . 1 3 3 9 Tactical Retreats 2 | . . . . 2 Traps | -11 -10 -10 -9 -9 ------- Run | Jun Mat Min Mat Min Traps Triggered . | . . . . . Indirectly . | . . . . . Trap Hack Attempts . | . . . . . Triggered . | . . . . . Disarmed . | . . . . . Reprogrammed . | . . . . . Reused . | . . . . . Traps Extracted . | . . . . . Installed . | . . . . . Triggered . | . . . . . Machines | -11 -10 -10 -9 -9 ---------- Run | Jun Mat Min Mat Min Machines Disabled 1 | . . . 1 . Max in Single Turn . | . . . . . Machines Repaired . | . . . . . Machines Sabotaged . | . . . . . Overloaded Fab Kills . | . . . . . Hacking | -11 -10 -10 -9 -9 --------- Run | Jun Mat Min Mat Min Machines Accessed 1 | . 1 . . . Terminals . | . . . . . Fabricators . | . . . . . Repair Stations . | . . . . . Recycling Units 1 | . 1 . . . Scanalyzers . | . . . . . Garrison Access . | . . . . . Total Hacks 3 | . 3 . . . Successful . | . . . . . Failed 3 | . 3 . . . Catastrophic . | . . . . . Database Lockouts . | . . . . . Manual . | . . . . . Terminals . | . . . . . Fabricators . | . . . . . Repair Stations . | . . . . . Recycling Units 3 | . 3 . . . Scanalyzers . | . . . . . Garrison Access . | . . . . . Terminal Hacks . | . . . . . Fabricator Hacks . | . . . . . Repair Station Hacks . | . . . . . Recycling Unit Hacks . | . . . . . Scanalyzer . | . . . . . Garrison Access Hacks . | . . . . . Unauthorized Hacks . | . . . . . Terminals . | . . . . . Fabricators . | . . . . . Repair Stations . | . . . . . Recycling Units . | . . . . . Scanalyzers . | . . . . . Garrison Access . | . . . . . Data Cores Recovered . | . . . . . Used . | . . . . . Hacking Detections 1 | . 1 . . . Full Trace Events 1 | . 1 . . . Feedback Events . | . . . . . Feedback Blocked . | . . . . . Robot Schematics Acquired . | . . . . . Robots Built . | . . . . . Authchips . | . . . . . Time . | . . . . . Total Robot Build Rating . | . . . . . Part Schematics Acquired . | . . . . . Parts Built . | . . . . . Authchips . | . . . . . Time . | . . . . . Total Part Build Rating . | . . . . . Parts Repaired . | . . . . . Time . | . . . . . Parts Recycled . | . . . . . Recycled Matter . | . . . . . Retrieved Matter . | . . . . . Retrieved Components . | . . . . . Parts Scanalyzed . | . . . . . Part Schematics Acquired . | . . . . . Parts Damaged . | . . . . . Bothacking | -11 -10 -10 -9 -9 ------------ Run | Jun Mat Min Mat Min Used RIF Installer . | . . . . . Robots Hacked . | . . . . . Non-combat . | . . . . . Combat . | . . . . . Robot Hacks Applied . | . . . . . Relay Couplers Released . | . . . . . Fabnet Peak Effective % . | . . . . . Robots Rewired . | . . . . . Allies Hacked . | . . . . . Hacks Repelled . | . . . . . Allies | -11 -10 -10 -9 -9 -------- Run | Jun Mat Min Mat Min Total Allies 1 | . . 1 . . Largest Group 1 | . . 1 1 1 Highest-Rated Group 31 | . . 31 31 31 Highest-Rated Ally 31 | . . 31 31 31 Total Orders . | . . . . . Ally Attacks 14 | . . . 6 8 Total Damage 169 | . . . 44 125 Kills 6 | . . . 2 4 Allies Corrupted . | . . . . . Allies Melted . | . . . . . Intel | -11 -10 -10 -9 -9 ------- Run | Jun Mat Min Mat Min Robot Analysis Total . | . . . . . Derelict Logs Recovered 3 | . . 2 . 1 Drone Launches . | . . . . . Drone Recoveries . | . . . . . Exploration | -11 -10 -10 -9 -9 ------------- Run | Jun Mat Min Mat Min Turns Passed 2056 | 59 170 662 247 918 Spaces Moved 820 | 34 119 398 91 178 Core 17 | 16 . . . 1 Treads 190 | . . . 13 177 Legs 613 | 18 119 398 78 . Wheels . | . . . . . Hover . | . . . . . Flight . | . . . . . Fastest Speed 50 | 50 120 120 190 480 Average Speed 230 | 101 120 154 231 496 Slowest Speed 2750 | 120 120 190 480 2750 Overloaded Moves . | . . . . . Propulsion Burnouts . | . . . . . Robots Hopped . | . . . . . Cave-ins Triggered . | . . . . . Exploration Rate (%) 32 | 4 23 80 11 45 Regions Visited 4 Branch Regions 2 Pre-discovered Areas . | . . . . . Known Exits Taken . | . . . . . Unknown Exits Taken 4 | 1 1 1 1 . Scrap Searched 1 | . . 1 . . Spaces Dug . | . . . . . Terrain Destroyed . | . . . . . Melee . | . . . . . Projectile . | . . . . . AOE . | . . . . . Terrain Rammed . | . . . . . Walls Destroyed . | . . . . . Machines Disabled . | . . . . . Actions | -11 -10 -10 -9 -9 --------- Run | Jun Mat Min Mat Min Total 930 | 51 132 425 121 201 Wait . | . . . . . Move 816 | 33 118 397 90 178 Hop . | . . . . . Pick Up 32 | 9 5 5 13 . Fast Attach 3 | 2 . 1 . . Attach 14 | 4 1 1 5 3 Detach 3 | . . . 3 . Swap 1 | . . 1 . . Drop 9 | . 1 5 3 . Fire 49 | 3 7 14 7 18 Melee 2 | . . . . 2 Ram . | . . . . . Kick 1 | . . 1 . . Crush . | . . . . . Escape Stasis . | . . . . . Rewire . | . . . . . Trap . | . . . . . Miscellaneous . | . . . . . Route ------- -11/Junkyard -10/Materials -10/Mines -9/Materials -9/Mines History --------- Turn | Location | Event 11 | -11/Junkyard | Discovered new exit (range 16) 60 | -11/Junkyard | Entered Materials 212 | -10/Materials | Discovered new exit (range 16) 230 | -10/Materials | Entered Mines 313 | -10/Mines | Build established: Mutant 473 | -10/Mines | Learned Materials stockpile data 510 | -10/Mines | Learned Materials garrison access intel 557 | -10/Mines | A weapon hastily lodged in a ceiling crevice suddenly fell to the ground 861 | -10/Mines | Met a Derelict testing a Signal Generator 862 | -10/Mines | Discovered new exit (range 11) 892 | -10/Mines | Entered Materials 892 | -9/Materials | Accompanied by 1 ally 892 | -9/Materials | Evolved 2 slots: Utility x2 1053 | -9/Materials | Discovered new exit (range 11) 1139 | -9/Materials | Entered Mines 1139 | -9/Mines | Accompanied by 1 ally 1209 | -9/Mines | Met a Derelict bent on vengeance 1235 | -9/Mines | Learned Materials terminal intel 1382 | -9/Mines | Build established: Hauler-Mutant 1942 | -9/Mines | Assembled infested the area 1947 | -9/Mines | Assisted by a Guerilla fighting off Assembled 1995 | -9/Mines | System corruption reached 10% 2020 | -9/Mines | Core integrity fell below 50% 2041 | -9/Mines | Core integrity fell below 20% 2057 | -9/Mines | Destroyed by as-82891 with Assembled F-torch Last Messages --------------- Assault Rifle destroyed. K-01 Serf collects debris. The unstable cave ceiling collapses. K-01 Serf destroyed. as-87319 destroyed. K-01 Serf collects debris. R-06 Scavenger collects Lgt. Ion Engine. Lgt. Treads destroyed. The unstable cave ceiling collapses. K-01 Serf collects debris. K-01 Serf destroyed. R-06 Scavenger destroyed. System corrupted: Matter fused (-8). K-01 Serf collects debris. U-05 Engineer builds a Wall. U-05 Engineer lays Concrete. K-01 Serf collects debris. U-05 Engineer lays Concrete. K-01 Serf collects debris. U-05 Engineer lays Concrete. Map ----- +----------------------------------------------------+ | ?????????????????????????????????????????????????? | | ?????????????????????????????????????????????????? | | ???????????#####?????????????????????????????????? | | ???######## #?????????????????????????????????? | | ???# #?????????????????????????????????? | | ???# #### #?????????????????????????????????? | | ?### #??#######?????????????????????????????????? | | ## #??????????????????????????????????????????? | | #??????????????????????????????????????????? | | #??????????????????????????????????????????? | | #??????????????????###?????????????????????? | | #?????????????????? ?????????????????????? | | ##?????????????????? ?????????????????????? | | ##??????????????????? %#?????????????????????? | | #???????????????????? r#?????????????????????? | | # ##??????????????????# #?????????????????????? | | # #??????????????????# #?????????????????????? | | # ##?????????????????# #?????????????????????? | | ## ##????????????????# #?????????????????????? | | ?# ##???????????##### #?????????????????????? | | ?# #?#####???### # #?????????????????????? | | ?# ### ##### # ##????????????????????? | | ?# ## =a #????????????????????? | | ## * a*%* #????????????????????? | | # |%=!%=u ##???????????????????? | | =###@%# #???????????????????? | | ###=#k##???????????????????? | | ## ## #a# ?????????????????? | | ###### ### # ## # ??????????????? | | #????# #?## ### # ????????????? | | ##???# #??# ##?## ###? ??????????? | | #???# ##### ##???### #????## ??????????? | | #???# ### ###??????# #???????## ???????????? | | ##???### #?# #????????# #?????????? ???????????? | | ##??????# #?# #??##????? ??????????????????????? | | ????????# #?# ?? #?????##??????????????????????? | | ????????# #?###?? #?????????????????????????????? | | ????????# #???### #?????????????????????????????? | | ???????## ##??# ??????????????????????????????? | | ??????## #### #??????????????????????????????? | | ??????# ## #??????????????????????????????? | | ??????# # #??????????????????????????????? | | ??????## ##?????????????????????????????? | | #??????### ##????????????????????????????? | | #???????#### #????????????????????????????? | | #?????????## #????????????????????????????? | | ?????###### ##???????????????????????????? | | ##???# #???????????????????????????? | | #???# #??????????????????????????? | | ???# ## #??????????????????????????? | +----------------------------------------------------+ Best States ------------- Heat Dissipation 28 Energy Generation 10 Energy Capacity 125 Matter Stores 300 Matter Capacity 300 Sight Range 16 Terrain Scan Density 10 Armor Coverage 150 Evasion (%) 55 Targeting Accuracy 5 Recoil Reduction 2 Authchip Count 1 Item Schematics ----------------- None Robot Schematics ------------------ None Fabricated ------------ Nothing Alien Tech Used ----------------- None Achievements -------------- Tank Challenges ------------ None Game ------ Seed AluminumDerelictVibroblade Manual? 0 Play Time 00:13:53 Cumulative 8.9 hours Start 2024.02.19 @ 15:39:28 End 2024.02.19 @ 15:52:57 Sessions 1 Manual Loads 0 Difficulty Rogue Special Mode None Game No. 14 Rogue 1 Adventurer 13 Explorer 0 Win Type - Total 0 Types 0/0/0/0/0/0/0/0/0 Lore% 5 Gallery% 14 Achievement% 11 Wizard Run 0 Options --------- ASCII 0 Keyboard 0 Movement Mouse Keybinds 0 Fullscreen 1 Font 18/SmallcapsGlow Map View 76x50 Tactical HUD 0 Map Filters NONE Filters NONE Steam 1 RUN: 9d84a085-4d31-4218-932d-37382559ea35